fUST/lending_fUST_20240812
["ID","MTS","AMOUNT","RATE_DAILY","PERIOD"]
[334675555,1723463444710,-500.0,0.00020821,3]
[334675556,1723463444719,-500.0,0.00020821,3]
[334675557,1723463444728,-505.34929325,0.00020821,3]
[334675558,1723463444738,-500.0,0.00020821,3]
[334675559,1723463444747,-1040.46,0.00020821,3]
[334675560,1723463444756,-500.0,0.00020821,3]
[334675561,1723463444765,-500.0,0.00020821,3]
[334675562,1723463444775,-500.0,0.00020821,3]
[334675563,1723463444784,-500.0,0.00020821,3]
[334675564,1723463444793,-500.0,0.00020821,3]
[334675565,1723463444802,-500.0,0.00020821,3]
[334675566,1723463444816,-500.0,0.00020821,3]
[334675567,1723463444825,-500.0,0.00020821,3]
[334675568,1723463444834,-500.0,0.00020821,3]
[334675569,1723463444844,-500.0,0.00020821,3]
[334675570,1723463444969,-500.0,0.00020821,3]
[334675571,1723463444983,-555.00322272,0.00020821,3]
[334675572,1723463444994,-500.0,0.00020821,3]
[334675573,1723463445003,-1094.35,0.00020821,3]
[334675574,1723463445013,-500.80828887,0.00020821,3]
[334675575,1723463445022,-502.03387557,0.00020821,3]
[334675576,1723463445031,-500.0,0.00020821,3]
[334675577,1723463445041,-500.0,0.00020821,3]
[334675578,1723463445050,-500.0,0.00020821,3]
[334675579,1723463445059,-500.0,0.00020821,3]
[334675580,1723463445069,-500.0,0.00020821,3]
[334675581,1723463445079,-500.0,0.00020821,3]
[334675582,1723463445088,-500.0,0.00020821,3]
[334675583,1723463445097,-500.0,0.00020821,3]
[334675584,1723463445106,-500.0,0.00020821,3]
[334675585,1723463445116,-500.0,0.00020821,3]
[334675586,1723463445125,-500.0,0.00020821,3]
[334675587,1723463445134,-500.0,0.00020821,3]
[334675588,1723463445144,-501.90565031,0.00020821,3]
[334675589,1723463445158,-500.0,0.00020821,3]
[334675590,1723463445167,-500.0,0.00020821,3]
[334675591,1723463445176,-515.03,0.00020821,3]
[334675592,1723463445185,-1390.81,0.00020821,3]
[334675593,1723463445194,-500.0,0.00020821,2]
[334675594,1723463445204,-500.0,0.00020821,3]
[334675595,1723463445213,-500.0,0.00020821,3]
[334675596,1723463445222,-500.0,0.00020821,3]
[334675597,1723463445232,-500.0,0.00020821,3]
[334675598,1723463445241,-500.0,0.00020821,3]
[334675599,1723463445250,-500.0,0.00020821,3]
[334675600,1723463445260,-228.057054,0.00020821,2]
[334675601,1723463445269,-500.0,0.00020821,3]
[334675602,1723463445279,-500.0,0.00020821,3]
[334675603,1723463445288,-500.0,0.00020821,3]
[334675604,1723463445298,-1073.25,0.00020821,3]
[334675605,1723463445307,-228.057056,0.00020821,2]
[334675606,1723463445316,-500.0,0.00020821,3]
[334675607,1723463445326,-500.0,0.00020821,3]
[334675608,1723463445335,-517.205068,0.00020821,2]
[334675609,1723463445346,-500.0,0.00020821,3]
[334675610,1723463445355,-500.0,0.00020821,3]
[334675611,1723463445365,-500.0,0.00020821,3]
[334675612,1723463445375,-500.0,0.00020821,3]
[334675613,1723463445385,-517.205064,0.00020821,2]
[334675614,1723463445394,-500.0,0.00020821,3]
[334675615,1723463445405,-500.0,0.00020821,3]
[334675616,1723463445416,-500.0,0.00020821,3]
[334675617,1723463445426,-500.0,0.00020821,3]
[334675618,1723463445436,-500.0,0.00020821,3]
[334675619,1723463445445,-500.0,0.00020821,3]
[334675620,1723463445455,-535.90743817,0.00020821,3]
[334675621,1723463445463,-500.0,0.00020821,3]
[334675622,1723463445473,-500.0,0.00020821,3]
[334675623,1723463445482,-500.0,0.00020821,3]
[334675624,1723463445491,-500.0,0.00020821,3]
[334675625,1723463445501,-500.0,0.00020821,3]
[334675626,1723463445510,-500.0,0.00020821,3]
[334675627,1723463445519,-500.0,0.00020821,3]
[334675628,1723463445529,-500.0,0.00020821,3]
[334675629,1723463445539,-500.0,0.00020821,3]
[334675630,1723463445548,-500.0,0.00020821,3]
[334675631,1723463445557,-440.45964835,0.00020821,3]
[334675632,1723463445567,-200.15609373,0.00020821,3]
[334675633,1723463445576,-500.0,0.00020821,3]
[334675634,1723463445586,-500.0,0.00020821,3]
[334675635,1723463445595,-500.0,0.00020821,3]
[334675636,1723463445604,-507.01067187,0.00020821,3]
[334675637,1723463445613,-500.0,0.00020821,3]
[334675638,1723463445622,-500.0,0.00020821,3]
[334675639,1723463445631,-500.0,0.00020821,3]
[334675640,1723463445640,-500.0,0.00020821,3]
[334675641,1723463445649,-500.0,0.00020821,3]
[334675642,1723463445660,-500.0,0.00020821,3]
[334675643,1723463445669,-500.0,0.00020821,3]
[334675644,1723463445678,-564.08093968,0.00020821,3]
[334675645,1723463445688,-500.0,0.00020821,3]
[334675646,1723463445698,-885.22,0.00020821,3]
[334675647,1723463445707,-500.0,0.00020821,3]
[334675648,1723463445716,-500.0,0.00020821,3]
[334675649,1723463445725,-405.2448557,0.00020821,3]
[334675650,1723463445734,-500.0,0.00020821,3]
[334675651,1723463445745,-500.0,0.00020821,3]
[334675652,1723463445755,-500.0,0.00020821,3]
[334675653,1723463445764,-500.0,0.00020821,3]
[334675654,1723463445773,-500.0,0.00020821,3]
[334675655,1723463445783,-500.0,0.00020821,3]
[334675656,1723463445792,-500.0,0.00020821,3]
[334675657,1723463445801,-500.0,0.00020821,3]
[334675658,1723463445810,-225.86554467,0.00020821,3]
[334675659,1723463445821,-505.7020919,0.00020821,3]
[334675660,1723463445831,-536.4,0.00020821,3]
[334675661,1723463445839,-500.0,0.00020821,3]
[334675662,1723463445851,-1072.78,0.00020821,3]
[334675663,1723463445860,-500.0,0.00020821,3]
[334675664,1723463445871,-500.0,0.00020821,3]
[334675665,1723463445880,-500.0,0.00020821,3]
[334675666,1723463445889,-500.0,0.00020821,3]
[334675667,1723463445899,-1073.9,0.00020821,3]
[334675668,1723463445910,-500.0,0.00020821,3]
[334675669,1723463445919,-500.0,0.00020821,3]
[334675670,1723463445928,-512.19781729,0.00020821,3]
[334675671,1723463445938,-500.0,0.00020821,3]
[334675672,1723463445947,-504.78252744,0.00020821,3]
[334675673,1723463445957,-500.0,0.00020821,3]
[334675674,1723463445966,-500.0,0.00020821,3]
[334675675,1723463445976,-506.07141917,0.00020821,3]
[334675676,1723463445986,-500.0,0.00020821,3]
[334675677,1723463445997,-948.88,0.00020821,3]
[334675678,1723463446009,-500.0,0.00020821,3]
[334675679,1723463446018,-503.91882432,0.00020821,3]
[334675680,1723463446027,-500.0,0.00020821,3]
[334675681,1723463446036,-500.0,0.00020821,3]
[334675682,1723463446045,-500.0,0.00020821,3]
[334675683,1723463446055,-500.0,0.00020821,3]
[334675684,1723463446064,-527.74,0.00020821,3]
[334675685,1723463446075,-1002.93,0.00020821,3]
[334675686,1723463446084,-500.0,0.00020821,3]
[334675687,1723463446093,-500.0,0.00020821,3]
[334675688,1723463446102,-501.52233401,0.00020821,3]
[334675689,1723463446113,-500.0,0.00020821,3]
[334675690,1723463446124,-1204.85,0.00020821,3]
[334675691,1723463446136,-500.0,0.00020821,3]
[334675692,1723463446147,-500.0,0.00020821,3]
[334675693,1723463446158,-500.0,0.00020821,3]
[334675694,1723463446168,-500.0,0.00020821,3]
[334675695,1723463446177,-500.0,0.00020821,3]
[334675696,1723463446187,-500.0,0.00020821,3]
[334675697,1723463446196,-503.41653541,0.00020821,3]
[334675698,1723463446206,-500.0,0.00020821,3]
[334675699,1723463446216,-500.0,0.00020821,3]
[334675701,1723463446226,-500.0,0.00020821,3]
[334675703,1723463446235,-500.0,0.00020821,3]
[334675704,1723463446245,-512.68322596,0.00020821,3]
[334675706,1723463446254,-500.0,0.00020821,3]
[334675707,1723463446264,-500.0,0.00020821,3]
[334675708,1723463446275,-630.89,0.00020821,3]
[334675709,1723463446286,-762.2,0.00020821,3]
[334675711,1723463446295,-504.21239175,0.00020821,3]
[334675713,1723463446306,-500.0,0.00020821,3]
[334675714,1723463446315,-829.73,0.00020821,3]
[334675715,1723463446324,-500.0,0.00020821,3]
[334675716,1723463446334,-508.82790382,0.00020821,3]
[334675717,1723463446343,-1424.09,0.00020821,3]
[334675718,1723463446352,-677.09,0.00020821,3]
[334675719,1723463446361,-500.0,0.00020821,3]
[334675720,1723463446371,-504.68628775,0.00020821,3]
[334675721,1723463446380,-500.0,0.00020821,3]
[334675722,1723463446390,-502.38200505,0.00020821,3]
[334675723,1723463446400,-500.0,0.00020821,3]
[334675725,1723463446414,-502.6501975,0.00020821,3]
[334675727,1723463446423,-509.59232505,0.00020821,3]
[334675729,1723463446433,-1621.8,0.00020821,3]
[334675730,1723463446443,-500.0,0.00020821,3]
[334675731,1723463446452,-503.67086892,0.00020821,3]
[334675732,1723463446462,-954.32,0.00020821,3]
[334675733,1723463446471,-501.4743432,0.00020821,3]
[334675734,1723463446481,-581.43,0.00020821,3]
[334675735,1723463446491,-500.0,0.00020821,3]
[334675736,1723463446500,-555.20493065,0.00020821,3]
[334675738,1723463446509,-1328.92,0.00020821,3]
[334675739,1723463446519,-575.28,0.00020821,3]
[334675740,1723463446528,-2119.11,0.00020821,3]
[334675741,1723463446537,-521.61,0.00020821,3]
[334675742,1723463446546,-744.54,0.00020821,3]
[334675743,1723463446555,-509.39676028,0.00020821,3]
[334675744,1723463446566,-634.92,0.00020821,3]
[334675746,1723463446576,-500.0,0.00020821,3]
[334675747,1723463446585,-500.0,0.00020821,3]
[334675748,1723463446594,-500.0,0.00020821,3]
[334675749,1723463446604,-609.93,0.00020821,3]
[334675750,1723463446613,-1614.62,0.00020821,3]
[334675751,1723463446622,-501.98845617,0.00020821,3]
[334675752,1723463446631,-500.0,0.00020821,3]
[334675753,1723463446640,-506.19468139,0.00020821,3]
[334675754,1723463446650,-500.0,0.00020821,3]
[334675755,1723463446665,-500.0,0.00020821,3]
[334675756,1723463446674,-422.79778272,0.00020821,3]
[334675757,1723463446684,-500.0,0.00020821,3]
[334675758,1723463446693,-500.0,0.00020821,3]
[334675759,1723463446703,-500.0,0.00020821,3]
[334675760,1723463446713,-791.62,0.00020821,3]
[334675761,1723463446722,-500.0,0.00020821,3]
[334675762,1723463446732,-500.0,0.00020821,3]
[334675763,1723463446741,-503.3674401,0.00020821,3]
[334675764,1723463446751,-576.45,0.00020821,3]
[334675765,1723463446760,-500.0,0.00020821,3]
[334675766,1723463446770,-504.02234705,0.00020821,3]
[334675767,1723463446779,-508.3166345,0.00020821,3]
[334675768,1723463446788,-500.0,0.00020821,3]
[334675769,1723463446798,-500.0,0.00020821,3]
[334675770,1723463446807,-500.0,0.00020821,3]
[334675771,1723463446819,-505.87900514,0.00020821,3]
[334675772,1723463446828,-500.0,0.00020821,3]
[334675773,1723463446838,-829.85,0.00020821,3]
[334675774,1723463446847,-500.0,0.00020821,3]
[334675775,1723463446857,-709.13,0.00020821,3]
[334675776,1723463446867,-500.0,0.00020821,3]
[334675777,1723463446876,-500.0,0.00020821,3]
[334675778,1723463446885,-500.0,0.00020821,3]
[334675779,1723463446894,-500.0,0.00020821,3]
[334675780,1723463446905,-327.02954162,0.00020821,3]
[334675781,1723463446915,-618.18,0.00020821,3]
[334675782,1723463446924,-1415.09,0.00020821,3]
[334675783,1723463446933,-500.0,0.00020821,3]
[334675784,1723463446943,-500.0,0.00020821,3]
[334675785,1723463446952,-501.68433035,0.00020821,3]
[334675786,1723463446961,-502.36932696,0.00020821,3]
[334675787,1723463446971,-500.0,0.00020821,3]
[334675788,1723463446980,-500.0,0.00020821,3]
[334675789,1723463446991,-506.12883141,0.00020821,3]
[334675790,1723463447000,-500.0,0.00020821,3]
[334675791,1723463447009,-546.69468098,0.00020821,3]
[334675792,1723463447019,-500.0,0.00020821,3]
[334675793,1723463447027,-695.9,0.00020821,3]
[334675794,1723463447037,-1139.51,0.00020821,3]
[334675795,1723463447046,-501.04370393,0.00020821,3]
[334675796,1723463447055,-502.68630497,0.00020821,3]
[334675797,1723463447065,-574.42,0.00020821,3]
[334675798,1723463447074,-500.0,0.00020821,3]
[334675799,1723463447083,-6707.8,0.00020821,3]
[334675800,1723463447093,-500.0,0.00020821,3]
[334675801,1723463447103,-2342.91,0.00020821,3]
[334675802,1723463447112,-500.0,0.00020821,3]
[334675803,1723463447121,-504.83163467,0.00020821,3]
[334675804,1723463447131,-500.0,0.00020821,3]
[334675805,1723463447140,-2046.93,0.00020821,3]
[334675806,1723463447150,-792.5,0.00020821,3]
[334675807,1723463447161,-1053.49,0.00020821,3]
[334675808,1723463447171,-1334.65,0.00020821,3]
[334675809,1723463447181,-500.0,0.00020821,3]
[334675810,1723463447190,-500.0,0.00020821,3]
[334675811,1723463447199,-4498.19,0.00020821,3]
[334675812,1723463447209,-502.81628372,0.00020821,3]
[334675813,1723463447218,-510.33,0.00020821,2]
[334675814,1723463447227,-1931.14,0.00020821,3]
[334675815,1723463447236,-500.0,0.00020821,3]
[334675816,1723463447246,-504.17183432,0.00020821,3]
[334675817,1723463447255,-511.2077985,0.00020821,3]
[334675818,1723463447265,-500.0,0.00020821,3]
[334675819,1723463447274,-513.66216797,0.00020821,3]
[334675820,1723463447283,-6539.4,0.00020821,3]
[334675821,1723463447293,-500.0,0.00020821,3]
[334675822,1723463447302,-538.62229691,0.00020821,3]
[334675823,1723463447311,-7227.56,0.00020821,3]
[334675824,1723463447321,-500.0,0.00020821,3]
[334675825,1723463447330,-500.0,0.00020821,3]
[334675826,1723463447374,-518.21,0.00020821,3]
[334675827,1723463447385,-1001.68,0.00020821,3]
[334675828,1723463447394,-506.13000869,0.00020821,3]
[334675829,1723463447403,-504.90175956,0.00020821,3]
[334675830,1723463447415,-500.0,0.00020821,3]
[334675831,1723463447424,-500.0,0.00020821,3]
[334675832,1723463447434,-500.0,0.00020821,3]
[334675833,1723463447443,-500.0,0.00020821,3]
[334675834,1723463447452,-500.0,0.00020821,3]
[334675835,1723463447461,-2582.81,0.00020821,3]
[334675836,1723463447471,-500.0,0.00020821,3]
[334675837,1723463447480,-500.0,0.00020821,3]
[334675838,1723463447489,-503.80031897,0.00020821,3]
[334675839,1723463447499,-743.55,0.00020821,3]
[334675840,1723463447508,-658.33,0.00020821,3]
[334675841,1723463447517,-1544.26,0.00020821,3]
[334675842,1723463447527,-520.15882396,0.00020821,3]
[334675843,1723463447536,-2112.42,0.00020821,3]
[334675844,1723463447545,-503.04790354,0.00020821,3]
[334675845,1723463447555,-500.0,0.00020821,3]
[334675846,1723463447564,-1370.7,0.00020821,3]
[334675847,1723463447574,-500.0,0.00020821,3]
[334675848,1723463447583,-2172.06,0.00020821,3]
[334675849,1723463447592,-200.0,0.00020821,3]
[334675850,1723463447603,-500.0,0.00020821,3]
[334675851,1723463447612,-761.7,0.00020821,3]
[334675852,1723463447621,-1482.26,0.00020821,3]
[334675853,1723463447630,-503.24843815,0.00020821,3]
[334675854,1723463447641,-786.74,0.00020821,3]
[334675855,1723463447650,-561.47,0.00020821,3]
[334675856,1723463447662,-508.75605454,0.00020821,3]
[334675857,1723463447671,-500.0,0.00020821,3]
[334675858,1723463447681,-1101.24,0.00020821,3]
[334675859,1723463447690,-500.0,0.00020821,3]
[334675860,1723463447699,-500.0,0.00020821,3]
[334675861,1723463447708,-1645.37,0.00020821,3]
[334675862,1723463447718,-769.72,0.00020821,3]
[334675863,1723463447727,-1795.55,0.00020821,3]
[334675864,1723463447737,-500.0,0.00020821,3]
[334675865,1723463447746,-500.0,0.00020821,3]
[334675866,1723463447755,-500.0,0.00020821,3]
[334675867,1723463447765,-500.0,0.00020821,3]
[334675868,1723463447774,-552.59,0.00020821,3]
[334675869,1723463447783,-502.64746291,0.00020821,3]
[334675870,1723463447793,-500.0,0.00020821,3]
[334675871,1723463447803,-269.70147985,0.00020821,3]
[334675872,1723463447813,-2530.68,0.00020821,3]
[334675873,1723463447823,-11818.01,0.00020821,3]
[334675874,1723463447832,-11818.01,0.00020821,3]
[334675875,1723463447841,-11818.01,0.00020821,3]
[334675876,1723463447850,-11818.01,0.00020821,3]
[334675877,1723463447861,-11818.01,0.00020821,3]
[334675878,1723463447871,-11818.01,0.00020821,3]
[334675879,1723463447881,-11818.01,0.00020821,3]
[334675880,1723463447890,-11818.01,0.00020821,3]
[334675881,1723463447899,-647.08,0.00020821,3]
[334675882,1723463447911,-11818.01,0.00020821,3]
[334675883,1723463447921,-647.08,0.00020821,3]
[334675884,1723463447931,-11818.01,0.00020821,3]
[334675885,1723463447940,-647.08,0.00020821,3]
[334675886,1723463447950,-11818.01,0.00020821,3]
[334675887,1723463447960,-11818.01,0.00020821,3]
[334675888,1723463447969,-1337.68,0.00020821,3]
[334675889,1723463447979,-11818.01,0.00020821,3]
[334675890,1723463447990,-11818.01,0.00020821,3]
[334675891,1723463447999,-11818.01,0.00020821,3]
[334675892,1723463448008,-1325.33,0.00020821,3]
[334675893,1723463448018,-647.08,0.00020821,3]
[334675894,1723463448027,-11818.01,0.00020821,3]
[334675895,1723463448037,-500.73988775,0.00020821,3]
[334675896,1723463448046,-647.08,0.00020821,3]
[334675897,1723463448055,-11818.01,0.00020821,3]
[334675898,1723463448064,-647.08,0.00020821,3]
[334675899,1723463448074,-11818.01,0.00020821,3]
[334675900,1723463448084,-647.08,0.00020821,3]
[334675901,1723463448093,-11818.01,0.00020821,3]
[334675902,1723463448103,-647.08,0.00020821,3]
[334675903,1723463448112,-11818.01,0.00020821,3]
[334675904,1723463448122,-647.08,0.00020821,3]
[334675905,1723463448131,-11818.01,0.00020821,3]
[334675906,1723463448140,-647.08,0.00020821,3]
[334675907,1723463448150,-11818.01,0.00020821,3]
[334675908,1723463448162,-11818.01,0.00020821,3]
[334675909,1723463448173,-500.0,0.00020821,3]
[334675910,1723463448183,-647.08,0.00020821,3]
[334675911,1723463448193,-11818.14613153,0.00020821,3]
[334675912,1723463448203,-647.08,0.00020821,3]
[334675913,1723463448213,-647.08,0.00020821,3]
[334675914,1723463448223,-647.08,0.00020821,3]
[334675915,1723463448233,-647.08,0.00020821,3]
[334675916,1723463448242,-500.0,0.00020821,3]
[334675917,1723463448252,-647.08,0.00020821,3]
[334675918,1723463448262,-647.08,0.00020821,3]
[334675919,1723463448272,-647.08,0.00020821,3]
[334675920,1723463448281,-500.0,0.00020821,3]
[334675921,1723463448291,-647.08,0.00020821,3]
[334675922,1723463448302,-647.08,0.00020821,3]
[334675923,1723463448313,-2519.31,0.00020821,3]
[334675924,1723463448322,-647.08,0.00020821,3]
[334675925,1723463448332,-647.08,0.00020821,3]
[334675926,1723463448341,-647.08,0.00020821,3]
[334675927,1723463448352,-647.30742153,0.00020821,3]
[334675928,1723463448361,-893.55,0.00020821,3]
[334675929,1723463448371,-500.0,0.00020821,3]
[334675930,1723463448380,-152.30821725,0.00020821,3]
[334675931,1723463448391,-506.04159792,0.00020821,3]
[334675932,1723463448400,-500.0,0.00020821,3]
[334675933,1723463448414,-500.0,0.00020821,3]
[334675934,1723463448423,-500.47259413,0.00020821,3]
[334675935,1723463448438,-1577.49,0.00020821,3]
[334675936,1723463448448,-500.0,0.00020821,3]
[334675937,1723463448457,-500.0,0.00020821,3]
[334675938,1723463448466,-500.0,0.00020821,3]
[334675939,1723463448475,-500.0,0.00020821,3]
[334675940,1723463448484,-827.28,0.00020821,3]
[334675941,1723463448493,-500.0,0.00020821,3]
[334675942,1723463448502,-500.0,0.00020821,3]
[334675943,1723463448511,-502.65893084,0.00020821,3]
[334675944,1723463448520,-521.18192109,0.00020821,3]
[334675945,1723463448529,-502.78650335,0.00020821,3]
[334675946,1723463448540,-8703.45,0.00020821,3]
[334675947,1723463448549,-511.03850065,0.00020821,3]
[334675948,1723463448558,-505.18072017,0.00020821,3]
[334675949,1723463448567,-501.33411686,0.00020821,3]
[334675950,1723463448576,-500.0,0.00020821,3]
[334675951,1723463448586,-500.0,0.00020821,3]
[334675952,1723463448596,-391.02287429,0.00020821,3]
[334675953,1723463448605,-500.0,0.00020821,3]
[334675954,1723463448616,-500.0,0.00020821,3]
[334675955,1723463448626,-502.3339384,0.00020821,3]
[334675956,1723463448636,-1740.42,0.00020821,3]
[334675957,1723463448645,-3749.33,0.00020821,3]
[334675958,1723463448654,-879.27,0.00020821,3]
[334675959,1723463448669,-505.39360485,0.00020821,3]
[334675960,1723463448678,-500.0,0.00020821,3]
[334675961,1723463448687,-500.0,0.00020821,3]
[334675962,1723463448697,-504.4163901,0.00020821,3]
[334675963,1723463448706,-166.54872756,0.00020821,3]
[334675964,1723463448715,-500.0,0.00020821,3]
[334675965,1723463448724,-529.89,0.00020821,3]
[334675966,1723463448735,-507.27813526,0.00020821,3]
[334675967,1723463448744,-13037.09,0.00020821,3]
[334675968,1723463448753,-500.0,0.00020821,3]
[334675969,1723463448762,-505.30193001,0.00020821,3]
[334675970,1723463448772,-500.0,0.00020821,3]
[334675971,1723463448783,-500.0,0.00020821,3]
[334675972,1723463448792,-5430.97,0.00020821,3]
[334675973,1723463448802,-2464.56,0.00020821,3]
[334675974,1723463448813,-675.95,0.00020821,3]
[334675975,1723463448823,-502.80914322,0.00020821,3]
[334675976,1723463448832,-854.3,0.00020821,3]
[334675977,1723463448842,-500.0,0.00020821,3]
[334675978,1723463448852,-587.25,0.00020821,3]
[334675979,1723463448862,-503.34318761,0.00020821,3]
[334675980,1723463448871,-1656.99,0.00020821,3]
[334675981,1723463448881,-276.09204124,0.00020821,3]
[334675982,1723463448891,-500.0,0.00020821,3]
[334675983,1723463448900,-500.0,0.00020821,3]
[334675984,1723463448912,-500.0,0.00020821,3]
[334675985,1723463448921,-500.0,0.00020821,3]
[334675986,1723463448930,-500.0,0.00020821,3]
[334675987,1723463448940,-500.0,0.00020821,3]
[334675988,1723463448950,-4044.39,0.00020821,3]
[334675989,1723463448959,-500.0,0.00020821,3]
[334675990,1723463448969,-500.0,0.00020821,3]
[334675991,1723463448978,-625.8659027,0.00020821,3]
[334675992,1723463448988,-500.0,0.00020821,3]
[334675993,1723463448997,-500.0,0.00020821,3]
[334675994,1723463449007,-500.0,0.00020821,3]
[334675995,1723463449016,-988.56,0.00020821,3]
[334675996,1723463449026,-500.0,0.00020821,3]
[334675997,1723463449035,-500.0,0.00020821,3]
[334675998,1723463449045,-500.0,0.00020821,3]
[334675999,1723463449054,-518.96623329,0.00020821,3]
[334676000,1723463449065,-1691.43,0.00020821,3]
[334676001,1723463449075,-500.0,0.00020821,3]
[334676002,1723463449084,-527.4319581,0.00020821,3]
[334676003,1723463449094,-2342.3,0.00020821,3]
[334676004,1723463449104,-504.68650453,0.00020821,3]
[334676005,1723463449114,-500.0,0.00020821,3]
[334676006,1723463449124,-500.0,0.00020821,3]
[334676007,1723463449134,-500.0,0.00020821,3]
[334676008,1723463449144,-500.0,0.00020821,3]
[334676009,1723463449154,-504.1527831,0.00020821,3]
[334676010,1723463449169,-503.82654771,0.00020821,3]
[334676011,1723463449179,-501.34034973,0.00020821,3]
[334676012,1723463449189,-2025.67,0.00020821,3]
[334676013,1723463449198,-500.0,0.00020821,3]
[334676014,1723463449208,-506.92878003,0.00020821,3]
[334676015,1723463449218,-500.0,0.00020821,3]
[334676016,1723463449227,-504.74492696,0.00020821,3]
[334676017,1723463449241,-2350.67,0.00020821,3]
[334676018,1723463449251,-276.877716,0.00020821,2]
[334676019,1723463449261,-500.0,0.00020821,3]
[334676020,1723463449270,-500.0,0.00020821,3]
[334676021,1723463449280,-502.3981963,0.00020821,3]
[334676022,1723463449289,-3223.34,0.00020821,3]
[334676023,1723463449299,-500.0,0.00020821,3]
[334676024,1723463449308,-698.06,0.00020821,3]
[334676025,1723463449318,-276.877706,0.00020821,2]
[334676026,1723463449328,-509.94940981,0.00020821,3]
[334676027,1723463449337,-500.0,0.00020821,3]
[334676028,1723463449347,-500.0,0.00020821,3]
[334676029,1723463449356,-1109.71,0.00020821,3]
[334676030,1723463449366,-500.0,0.00020821,3]
[334676031,1723463449376,-503.10663543,0.00020821,3]
[334676032,1723463449386,-861.64,0.00020821,3]
[334676033,1723463449395,-1908.21,0.00020821,3]
[334676034,1723463449405,-503.23853271,0.00020821,3]
[334676035,1723463449420,-1207.92,0.00020821,3]
[334676036,1723463449429,-500.0,0.00020821,3]
[334676037,1723463449439,-503.61996169,0.00020821,3]
[334676038,1723463449448,-500.92905946,0.00020821,3]
[334676039,1723463449458,-500.0,0.00020821,3]
[334676040,1723463449467,-505.58590369,0.00020821,3]
[334676041,1723463449478,-753.3,0.00020821,3]
[334676042,1723463449487,-500.0,0.00020821,3]
[334676043,1723463449497,-502.05229203,0.00020821,3]
[334676044,1723463449507,-500.0,0.00020821,3]
[334676045,1723463449517,-505.31570134,0.00020821,3]
[334676046,1723463449527,-500.0,0.00020821,3]
[334676047,1723463449537,-500.0,0.00020821,3]
[334676048,1723463449546,-502.05,0.00020821,3]
[334676049,1723463449556,-500.0,0.00020821,3]
[334676050,1723463449566,-151.0383811,0.00020821,3]
[334676051,1723463449576,-510.92084251,0.00020821,3]
[334676052,1723463449587,-506.88527368,0.00020821,3]
[334676053,1723463449596,-737.74,0.00020821,3]
[334676054,1723463449606,-500.0,0.00020821,3]
[334676055,1723463449616,-506.82338046,0.00020821,3]
[334676056,1723463449625,-501.86257404,0.00020821,3]
[334676057,1723463449635,-500.0,0.00020821,3]
[334676058,1723463449645,-500.0,0.00020821,3]
[334676059,1723463449656,-13975.15,0.00020821,3]
[334676060,1723463449667,-743.98,0.00020821,3]
[334676061,1723463449676,-500.0,0.00020821,3]
[334676062,1723463449686,-502.25129399,0.00020821,3]
[334676063,1723463449696,-500.0,0.00020821,3]
[334676064,1723463449706,-528.49685715,0.00020821,3]